bitfinex/quotes_ETHUSD_20251006
["timestamp","ask_amount","ask_price","bid_price","bid_amount"]
[1759745490831,0.002,4565.9,4565.8,17.88174283]
[1759745491022,0.002,4565.9,4565.8,18.33624283]
[1759745491631,0.002,4565.9,4565.8,17.70264283]
[1759745491934,0.002,4565.9,4565.8,18.33624283]
[1759745494123,0.002,4565.9,4565.8,17.88174283]
[1759745494437,0.0012,4565.9,4565.8,17.88174283]
[1759745495344,0.0004,4566.4,4566.3,2.18995685]
[1759745495641,0.0004,4566.4,4566.3,2.88985457]
[1759745495840,0.0004,4566.4,4566.3,2.99945457]
[1759745496642,0.0004,4566.4,4566.3,2.97755501]
[1759745497849,0.0004,4566.4,4566.3,14.37755501]
[1759745498144,0.4302,4566.4,4566.3,0.78759816]
[1759745498343,0.4302,4566.4,4566.3,0.1096]
[1759745503846,1.1922,4566.4,4566.3,0.1096]
[1759745504618,0.4302,4566.4,4566.3,0.1096]
[1759745504819,1.9892,4566.4,4566.3,0.1096]
[1759745505148,2.7472,4566.4,4566.3,0.1096]
[1759745505328,2.95184199,4566.4,4566.3,0.1096]
[1759745507567,5.14175187,4566.4,4565.2,2.4]
[1759745507738,0.63444199,4566.3,4566.0,0.1096]
[1759745508065,0.4298,4566.3,4566.0,0.1096]
[1759745508266,0.20478636,4566.2,4566.0,0.1096]
[1759745508559,0.20478636,4566.1,4566.0,0.1096]
[1759745509063,0.63458636,4566.1,4566.0,0.1096]
[1759745509356,0.4298,4566.1,4566.0,0.1096]
[1759745511325,2.3174,4566.4,4566.0,0.1096]
[1759745511638,2.7472,4566.4,4566.0,0.1096]
[1759745511832,0.4298,4566.3,4566.0,0.1096]
[1759745512357,0.4298,4566.2,4566.0,0.1096]
[1759745512720,0.4298,4566.1,4566.0,0.1096]
[1759745512926,2.3174,4566.4,4566.0,0.1096]
[1759745513152,0.4298,4566.3,4566.0,0.1096]
[1759745513546,0.4298,4566.2,4566.0,0.1096]
[1759745513946,0.4298,4566.1,4566.0,0.1096]
[1759745515165,2.3174,4566.4,4566.0,0.1096]
[1759745515479,0.4298,4566.3,4566.0,0.1096]
[1759745515830,0.4298,4566.2,4566.0,0.1096]
[1759745516662,0.0004,4566.4,4566.0,0.1096]
[1759745516845,2.9038,4566.3,4566.0,0.1096]
[1759745517050,2.9038,4566.3,4566.0,2.2996788]
[1759745517275,0.4298,4566.2,4566.0,2.2996788]
[1759745518789,2.18975285,4566.8,4566.1,2.19005067]
[1759745519083,0.4298,4566.5,4566.1,2.29965067]
[1759745519465,0.4298,4566.4,4566.1,0.1096]
[1759745519785,0.4298,4566.4,4566.1,2.2996469]
[1759745519979,2.5836,4566.7,4566.1,2.2996469]
[1759745520183,0.63448166,4566.6,4566.1,0.1096]
[1759745520389,2.5836,4566.7,4566.1,2.29962447]
[1759745520553,2.9038,4566.6,4566.2,2.21186242]
[1759745521052,0.4298,4566.6,4566.2,2.21186242]
[1759745521255,2.474,4566.5,4566.2,0.02190004]
[1759745521458,0.002,4567.0,4566.2,2.44405599]
[1759745521653,2.474,4566.8,4566.4,2.29950095]
[1759745521883,2.474,4566.8,4566.5,2.21174641]
[1759745522097,2.474,4566.8,4566.6,2.18981131]
[1759745522297,0.002,4566.9,4566.8,2.18971708]
[1759745522468,2.476,4566.9,4566.8,2.67718793]
[1759745522668,0.002,4566.9,4566.8,2.67718793]
[1759745522867,0.002,4566.9,4566.8,5.54078793]
[1759745523270,2.476,4566.9,4566.8,5.54078793]
[1759745523692,2.476,4566.9,4566.8,5.65009515]
[1759745523913,0.002,4566.9,4566.8,5.65009515]
[1759745524114,2.476,4566.9,4566.8,5.65009515]
[1759745524772,2.476,4566.9,4566.8,7.21760107]
[1759745525208,2.476,4566.9,4566.8,5.65009515]
[1759745525715,0.002,4566.9,4566.8,5.65009515]
[1759745525877,0.002,4566.9,4566.8,17.05009515]
[1759745525878,2.476,4566.9,4566.8,17.05009515]
[1759745526281,2.476,4566.9,4566.8,18.62030603]
[1759745526589,0.002,4566.9,4566.8,18.62030603]
[1759745526969,0.002,4566.9,4566.8,17.05009515]
[1759745527790,0.002,4566.9,4566.8,16.58649515]
[1759745527992,0.4555,4566.9,4566.8,0.48747085]
[1759745528203,0.4555,4566.9,4566.2,1.57002059]
[1759745528386,0.4535,4566.8,4566.2,1.57002059]
[1759745528589,0.002,4566.9,4565.9,3.76015951]
[1759745528800,0.4535,4566.7,4566.1,2.19000952]
[1759745528999,0.4535,4566.6,4566.2,2.18999434]
[1759745529311,2.9275,4566.5,4566.2,3.02500973]
[1759745529472,0.4535,4566.4,4566.3,2.4]
[1759745530677,0.4535,4566.4,4565.9,2.19014871]
[1759745530871,0.4535,4566.3,4565.8,0.001]
[1759745531076,0.4535,4566.3,4566.0,2.19008504]
[1759745531381,0.4535,4566.3,4566.1,0.2191085]
[1759745532323,0.4535,4566.2,4565.8,2.401]
[1759745532488,0.4535,4566.2,4565.8,0.001]
[1759745532682,2.39464881,4566.1,4565.8,0.001]
[1759745532876,2.19014871,4565.9,4565.8,0.001]
[1759745533082,4.86874474,4565.9,4565.8,0.001]
[1759745533292,5.32224474,4565.9,4565.8,0.001]
[1759745538001,5.43184474,4565.9,4565.8,0.001]
[1759745539688,0.31419603,4565.9,4565.8,0.001]
[1759745539887,4.97834474,4565.9,4565.8,0.001]
[1759745540205,4.77374871,4565.9,4565.8,0.001]
[1759745540530,5.22724871,4565.9,4565.8,0.001]
[1759745543204,5.22644871,4565.9,4565.8,0.001]
[1759745544206,9.44644871,4565.9,4565.8,0.001]
[1759745545538,6.8028,4565.9,4565.8,0.001]
[1759745546044,0.002,4566.4,4565.8,0.001]
[1759745546210,0.1096,4566.2,4565.8,0.4646]
[1759745546417,2.474,4566.1,4565.8,0.4646]
[1759745546639,2.474,4566.1,4565.8,0.001]
[1759745546822,4.66405552,4566.1,4565.8,0.001]
[1759745547033,0.1096,4566.2,4565.8,0.001]
[1759745547219,2.474,4566.0,4565.9,0.4636]
[1759745547416,2.474,4566.0,4565.8,0.001]
[1759745547611,2.474,4566.0,4565.8,0.4646]
[1759745547836,0.1096,4566.2,4565.8,0.001]
[1759745548039,2.474,4566.1,4565.9,0.4636]
[1759745548233,2.474,4566.1,4566.0,0.4636]
[1759745548958,0.002,4566.4,4566.1,2.19003947]
[1759745549112,2.474,4566.3,4566.0,0.84087028]
[1759745549319,2.474,4566.3,4566.1,0.4636]
[1759745549620,2.474,4566.3,4566.2,0.4636]
[1759745550345,2.474,4566.3,4566.2,2.65360481]
[1759745550673,0.002,4566.4,4566.3,2.18995685]
[1759745550965,0.002,4566.4,4566.3,0.48549956]
[1759745551135,0.002,4566.4,4566.3,2.67545641]
[1759745551448,2.043,4566.4,4566.3,0.5732]
[1759745551617,2.043,4566.4,4566.3,2.76315685]
[1759745551818,2.043,4566.4,4566.3,3.30801431]
[1759745552049,2.043,4566.4,4566.3,1.11805746]
[1759745552372,2.043,4566.4,4566.3,3.30801431]
[1759745552726,0.002,4566.4,4566.3,3.30801431]
[1759745553056,0.002,4566.4,4566.3,5.72991387]
[1759745553057,0.014,4566.4,4566.3,5.72991387]
[1759745553260,0.014,4566.4,4566.3,5.70801431]
[1759745553643,0.002,4566.4,4566.3,5.70801431]
[1759745553841,2.476,4566.4,4566.3,5.70801431]
[1759745554452,0.002,4566.4,4566.3,5.70801431]
[1759745554763,2.476,4566.4,4566.3,5.70801431]
[1759745555132,0.002,4566.4,4566.3,5.70801431]
[1759745555331,2.476,4566.4,4566.3,5.70801431]
[1759745555744,0.002,4566.4,4566.3,5.70801431]
[1759745557060,0.002,4566.4,4566.3,7.2780349]
[1759745557254,0.002,4566.4,4566.3,7.9116349]
[1759745558035,0.002,4566.9,4566.8,2.18971708]
[1759745558331,0.002,4566.9,4566.8,5.04956465]
[1759745558534,0.002,4566.9,4566.8,5.57206748]
[1759745558763,0.002,4566.9,4566.8,6.20566748]
[1759745561863,0.002,4566.9,4566.8,5.13726748]
[1759745562064,0.002,4566.9,4566.8,2.9475504]
[1759745562667,0.002,4566.9,4566.8,5.13726748]
[1759745565738,2.18971708,4566.8,4566.3,0.54485746]
[1759745565957,0.4553,4566.9,4565.8,0.001]
[1759745565958,0.4533,4566.7,4565.8,0.001]
[1759745566369,2.18981298,4566.6,4565.8,0.001]
[1759745566667,0.4533,4566.7,4565.8,2.401]
[1759745566971,0.4533,4566.6,4565.8,0.2411]
[1759745567168,2.473,4566.5,4565.9,2.1901406]
[1759745567376,0.4533,4566.4,4565.9,2.1901406]
[1759745567583,0.4533,4566.3,4566.0,2.19009502]
[1759745567763,0.4525,4566.3,4566.0,2.19009502]
[1759745567964,2.473,4566.5,4566.0,2.19009502]
[1759745568163,2.473,4566.5,4565.8,0.001]
[1759745568379,2.473,4566.5,4565.8,0.2411]
[1759745568551,2.473,4566.5,4565.9,2.4]
[1759745568756,2.473,4566.5,4566.0,4.59006077]
[1759745568957,2.473,4566.5,4566.0,2.19006077]
[1759745569156,2.473,4566.5,4566.1,2.19003899]
[1759745569382,2.19167885,4566.9,4565.9,0.4348]
[1759745569383,0.002,4566.9,4565.9,0.4348]
[1759745569556,2.473,4566.4,4566.3,2.18995685]
[1759745569753,0.002,4566.9,4566.5,2.18981682]
[1759745569991,0.002,4566.9,4566.3,0.44019106]
[1759745569992,2.473,4566.8,4566.3,2.63012447]
[1759745570166,2.473,4566.8,4566.3,0.44019106]
[1759745570365,2.473,4566.8,4566.6,2.18980834]
[1759745571183,0.002,4566.9,4566.6,2.18980834]
[1759745571184,2.473,4566.7,4566.6,2.18977444]
[1759745571887,2.473,4566.7,4566.1,11.4]
[1759745572188,2.473,4566.7,4566.5,2.1898199]
[1759745574087,2.473,4566.7,4566.2,2.4]
[1759745574392,2.473,4566.7,4566.5,2.18984329]
[1759745575281,2.473,4566.7,4566.3,1.42348]
[1759745575460,2.473,4566.7,4566.4,2.18987098]
[1759745575664,2.473,4566.7,4566.5,2.18983946]
[1759745575865,2.473,4566.7,4566.6,0.1096]
[1759745576266,2.9263,4566.7,4566.6,0.1096]
[1759745578176,0.002,4566.9,4566.7,2.18976503]
[1759745578360,0.002,4566.9,4566.8,2.42184339]
[1759745578561,2.475,4566.9,4566.8,2.42184339]
[1759745579273,2.475,4566.9,4566.8,4.82184339]
[1759745580088,2.475,4566.9,4566.8,2.42184339]
[1759745580785,2.475,4566.9,4566.8,0.23212631]
[1759745581367,2.475,4566.9,4566.8,2.42184339]
[1759745583061,2.475,4566.9,4566.8,2.89554339]
[1759745583264,2.475,4566.9,4566.8,5.29554339]
[1759745583469,2.475,4566.9,4566.8,4.82184339]
[1759745585470,0.002,4566.9,4566.8,5.29554339]
[1759745585665,0.421,4566.9,4566.8,5.29554339]
[1759745585860,0.002,4566.9,4566.8,6.86556398]
[1759745586111,0.421,4566.9,4566.8,5.29554339]
[1759745586268,0.819,4566.9,4566.8,5.29554339]
[1759745587398,1.298,4566.9,4566.8,6.86556398]
[1759745587698,1.753,4566.9,4566.8,6.86556398]
[1759745589297,1.753,4566.9,4566.8,6.39186398]
[1759745591487,0.002,4566.9,4566.8,6.39186398]
[1759745592191,0.0012,4566.9,4566.8,17.79186398]
[1759745595396,0.0012,4566.9,4566.8,6.39186398]
[1759745596011,0.0012,4566.9,4566.8,4.82184339]
[1759745596180,0.4499,4566.9,4566.8,6.15973767]
[1759745596385,0.4499,4566.9,4566.8,4.58971708]
[1759745597116,0.4499,4566.9,4566.7,2.18972245]
[1759745597309,0.4487,4566.8,4566.7,2.18972245]
[1759745597621,0.0012,4566.9,4566.8,2.18971708]
[1759745598648,0.0012,4566.9,4566.8,2.21161425]
[1759745598918,2.4742,4566.9,4566.8,2.21161425]
[1759745599116,0.0012,4566.9,4566.8,2.18971708]
[1759745599320,0.0012,4566.9,4566.8,2.21161425]
[1759745599610,2.4742,4566.9,4566.8,2.21161425]
[1759745599921,2.4742,4566.9,4566.8,2.18971708]
[1759745600415,2.9229,4566.9,4566.6,1.67962059]
[1759745600596,0.4487,4566.8,4566.6,0.1096]
[1759745600980,0.4487,4566.7,4566.6,0.1096]
[1759745603308,2.63848301,4566.7,4566.5,0.001]
[1759745603909,0.4487,4566.7,4566.5,0.001]
[1759745604106,2.63849749,4566.7,4566.5,0.001]
[1759745604430,2.63847193,4566.7,4566.5,0.001]
[1759745604632,2.63846686,4566.7,4566.5,0.001]
[1759745604935,0.4487,4566.7,4566.5,0.001]
[1759745605237,2.18981298,4566.6,4566.5,0.001]
[1759745605442,2.39455229,4566.6,4566.5,0.001]
[1759745605938,2.84325229,4566.6,4566.5,0.001]
[1759745606135,0.65343931,4566.6,4566.5,0.001]
[1759745606911,2.84325229,4566.6,4566.5,0.001]
[1759745611150,5.31600324,4566.6,4566.5,0.001]
[1759745611439,0.20449026,4566.6,4566.5,0.001]
[1759745611643,0.392,4566.6,4566.5,0.001]
[1759745612756,0.392,4566.6,4566.5,2.19086094]
[1759745613054,0.1108,4566.9,4566.6,2.1897783]
[1759745613237,2.473,4566.8,4566.6,2.65801298]
[1759745613432,0.0012,4566.9,4566.6,2.65801298]
[1759745613637,2.473,4566.7,4566.6,2.65801298]
[1759745614024,2.41496856,4566.7,4566.6,2.65801298]
[1759745614233,0.0012,4566.9,4566.8,2.18971708]
[1759745614430,2.4742,4566.9,4566.8,2.18971708]
[1759745614640,2.4742,4566.9,4566.7,0.4459]
[1759745614829,2.4742,4566.9,4566.8,2.18971708]
[1759745615040,2.4742,4566.9,4566.6,0.1096]
[1759745615246,2.4742,4566.9,4566.7,2.18971734]
[1759745615451,2.4742,4566.9,4566.7,2.18976503]
[1759745615651,2.4742,4566.9,4566.6,0.1096]
[1759745615960,2.4742,4566.9,4566.8,2.18971708]
[1759745616656,2.4734,4566.9,4566.8,2.63561708]
[1759745616857,2.4734,4566.9,4566.8,2.91023879]
[1759745619342,0.0004,4566.9,4566.8,2.46433879]
[1759745619639,2.4734,4566.9,4566.8,2.46433879]
[1759745620067,2.4734,4566.9,4566.8,2.91023879]
[1759745622561,2.4734,4566.9,4566.8,2.93213596]
[1759745623776,0.0004,4566.9,4566.8,2.93213596]
[1759745623943,0.0004,4566.9,4566.8,5.41983879]
[1759745623944,2.4734,4566.9,4566.8,5.41983879]
[1759745632480,2.4734,4566.9,4566.8,4.97493879]
[1759745634074,2.4724,4566.9,4566.8,4.97493879]
[1759745634268,2.4724,4566.9,4566.8,16.37493879]
[1759745636286,2.4724,4566.9,4566.8,4.97493879]
[1759745636787,2.4724,4566.9,4566.8,16.37493879]
[1759745638579,2.4724,4566.9,4566.8,4.97493879]
[1759745639683,0.0004,4566.9,4566.8,4.97493879]
[1759745639887,2.4724,4566.9,4566.8,4.97493879]
[1759745640469,0.0004,4566.9,4566.8,4.97493879]
[1759745640666,2.4724,4566.9,4566.8,4.97493879]
[1759745641163,2.4716,4566.9,4566.8,4.97493879]
[1759745641362,2.4716,4566.9,4566.8,6.54495938]
[1759745642178,2.4716,4566.9,4566.8,4.97493879]
[1759745643182,2.9192,4566.9,4566.8,4.08375968]
[1759745643377,2.9192,4566.9,4566.8,4.70031708]
[1759745643975,2.4716,4566.9,4566.8,6.27347676]
[1759745644195,2.9192,4566.9,4566.8,6.27347676]
[1759745646289,2.9192,4566.9,4566.8,4.08375968]
[1759745646902,2.9192,4566.9,4566.8,0.1106]
[1759745649790,2.9212,4566.9,4566.8,0.1106]
[1759745650690,2.4736,4566.9,4566.8,0.1106]
[1759745650897,2.9212,4566.9,4566.8,0.1106]
[1759745651105,2.9212,4566.9,4566.8,0.001]
[1759745656307,2.4736,4566.9,4566.8,0.001]
[1759745656616,2.4736,4566.9,4566.8,2.21261425]
[1759745656617,0.002,4566.9,4566.8,2.21261425]
[1759745656820,2.474,4566.9,4566.8,3.45331683]
[1759745657023,2.474,4566.9,4566.8,3.43141966]
[1759745657324,2.474,4566.9,4566.8,5.39161966]
[1759745658609,0.002,4566.9,4566.8,5.39161966]
[1759745658808,0.002,4566.9,4566.8,5.83141966]
[1759745659003,2.474,4566.9,4566.8,5.83141966]
[1759745660194,2.474,4566.9,4566.8,5.39161966]
[1759745660420,2.474,4566.9,4566.8,4.70031708]
[1759745661203,2.9216,4566.9,4566.8,0.1106]
[1759745661527,5.42573448,4566.9,4566.8,0.001]
[1759745663123,5.42551367,4566.9,4566.8,0.001]
[1759745664316,5.22086914,4566.9,4566.8,0.001]
[1759745664502,5.42541372,4566.9,4566.8,0.001]
[1759745665607,5.42461372,4566.9,4566.8,0.001]
[1759745667253,5.42461372,4566.9,4565.8,0.001]
[1759745667254,5.63494458,4566.9,4565.8,0.001]
[1759745667420,2.19005278,4566.1,4565.8,0.001]
[1759745667738,2.19005278,4566.1,4563.6,0.4398]
[1759745667739,2.19034059,4565.5,4563.6,0.4398]
[1759745667961,4.86665344,4565.5,4563.2,2.8398]
[1759745668122,5.31425344,4565.5,4563.4,0.4398]
[1759745668311,5.31425344,4565.5,4563.5,2.4]
[1759745668508,5.31425344,4565.5,4563.4,0.4398]
[1759745669027,5.31397086,4565.5,4563.4,0.4398]
[1759745669228,2.19053251,4565.1,4565.0,1e-08]
[1759745669440,4.86656278,4565.1,4565.0,1e-08]
[1759745669740,5.31416278,4565.1,4565.0,1e-08]
[1759745670036,5.97185631,4565.1,4565.0,1e-08]
[1759745675828,8.37185631,4565.1,4565.0,1e-08]
[1759745676294,8.3707847,4565.1,4565.0,1e-08]
[1759745677330,8.4803847,4565.1,4565.0,1e-08]
[1759745678552,12.24342801,4565.1,4565.0,1e-08]
[1759745678728,14.52142801,4565.1,4565.0,1e-08]
[1759745682088,6.0083847,4565.1,4565.0,1e-08]
[1759745682286,14.52142801,4565.1,4565.0,1e-08]
[1759745682970,5.5607847,4565.1,4565.0,1e-08]
[1759745683169,8.4954847,4565.1,4565.0,1e-08]
[1759745683376,6.0244847,4565.1,4565.0,1e-08]
[1759745683806,10.7754847,4565.1,4565.0,1e-08]
[1759745684391,6.0244847,4565.1,4565.0,1e-08]
[1759745684564,5.5627847,4565.1,4565.0,1e-08]
[1759745684763,10.3137847,4565.1,4565.0,1e-08]
[1759745685290,5.6357847,4565.1,4565.0,1e-08]
[1759745685491,8.0357847,4565.1,4565.0,1e-08]
[1759745685864,7.83282604,4565.1,4565.0,1e-08]
[1759745686065,8.03572748,4565.1,4565.0,1e-08]
[1759745686266,5.56272748,4565.1,4565.0,1e-08]
[1759745686464,5.56272748,4565.1,4565.0,0.43750001]
[1759745686808,4.97809225,4565.1,4565.0,0.43750001]
[1759745687293,4.97818481,4565.1,4565.0,0.43750001]
[1759745687492,2.50518481,4565.1,4565.0,0.43750001]
[1759745687692,4.97818481,4565.1,4565.0,0.43750001]
[1759745688666,2.50518481,4565.1,4565.0,0.43750001]
[1759745688869,0.3146523,4565.1,4565.0,0.43750001]
[1759745689096,2.7876523,4565.1,4565.0,0.43750001]
[1759745689276,4.97818481,4565.1,4565.0,0.43750001]
[1759745690070,2.7868523,4565.1,4565.0,0.43750001]
[1759745690274,0.3138523,4565.1,4565.0,0.43750001]
[1759745690777,2.7868523,4565.1,4565.0,0.43750001]
[1759745691977,0.3138523,4565.1,4565.0,0.43750001]
[1759745692194,2.7868523,4565.1,4565.0,0.43750001]
[1759745692493,0.3138523,4565.1,4565.0,0.43750001]
[1759745692709,2.6772523,4565.1,4565.0,0.43750001]
[1759745692910,0.2042523,4565.1,4565.0,0.43750001]
[1759745693109,2.6772523,4565.1,4565.0,0.43750001]
[1759745693283,2.6772523,4565.1,4565.0,0.70031883]
[1759745695617,2.6772523,4565.1,4565.0,2.89089933]
[1759745696114,2.6772523,4565.1,4565.0,0.70031883]
[1759745696289,2.6772523,4565.1,4565.0,0.43750001]
[1759745697519,2.6772523,4565.1,4565.0,2.62808051]
[1759745697718,2.6772523,4565.1,4565.0,0.43750001]
[1759745699228,2.4742,4565.1,4565.0,0.43750001]
[1759745700213,0.0012,4565.1,4565.0,0.43750001]
[1759745700518,2.4742,4565.1,4565.0,0.73221001]
[1759745701218,2.4742,4565.1,4565.0,2.92279051]
[1759745702209,0.0012,4565.1,4565.0,2.92279051]
[1759745702516,0.0012,4565.1,4565.0,5.34469631]
[1759745702704,2.4742,4565.1,4565.0,5.32279051]
[1759745703021,0.0012,4565.1,4565.0,5.32279051]
[1759745703217,2.4742,4565.1,4565.0,5.32279051]
[1759745703923,0.0012,4565.1,4565.0,5.32279051]
[1759745704105,2.0902,4565.1,4565.0,5.32279051]
[1759745704506,0.0012,4565.1,4565.0,5.32279051]
[1759745704821,2.4742,4565.1,4565.0,5.32279051]
[1759745705411,0.0012,4565.1,4565.0,5.32279051]
[1759745705612,2.4742,4565.1,4565.0,5.43239051]
[1759745709228,2.4732,4565.1,4565.0,5.43239051]
[1759745709798,2.4732,4565.1,4565.0,2.80431001]
[1759745710032,2.9306,4565.1,4565.0,2.50960001]
[1759745710238,5.12113251,4565.1,4565.0,1e-08]
[1759745710526,5.43472891,4565.1,4565.0,1e-08]
[1759745711927,3.2441964,4565.1,4565.0,1e-08]
[1759745712313,5.43472891,4565.1,4565.0,1e-08]
[1759745712513,0.3147964,4565.1,4565.0,1e-08]
[1759745712707,2.5828,4565.1,4565.0,1e-08]
[1759745713345,0.0012,4565.1,4565.0,1e-08]
[1759745713634,2.4732,4565.1,4565.0,1e-08]
[1759745714033,0.0012,4565.1,4565.0,1e-08]
[1759745714407,2.4732,4565.1,4565.0,1e-08]
[1759745714942,2.4724,4565.1,4565.0,0.51364921]
[1759745715441,2.4724,4565.1,4565.0,2.70422971]
[1759745715906,2.4724,4565.1,4565.0,3.14052971]
[1759745716309,2.4724,4565.1,4565.0,3.16243551]
[1759745716608,0.0004,4565.1,4565.0,3.02324921]
[1759745716831,0.0004,4565.1,4565.0,2.50960001]
[1759745716832,2.4724,4565.1,4565.0,2.50960001]
[1759745717760,5.32494954,4565.1,4565.0,1e-08]
[1759745727736,5.43454954,4565.1,4565.0,1e-08]
[1759745731478,4.97714954,4565.1,4565.0,1e-08]
[1759745732553,5.43454954,4565.1,4565.0,1e-08]
[1759745733283,5.42584954,4565.1,4565.0,1e-08]
[1759745734363,9.64584954,4565.1,4565.0,1e-08]
[1759745735485,9.44123251,4565.1,4565.0,1e-08]
[1759745735692,9.64561942,4565.1,4565.0,1e-08]
[1759745735854,9.19691942,4565.1,4565.0,1e-08]
[1759745736592,9.63561942,4565.1,4565.0,1e-08]
[1759745738953,9.63481942,4565.1,4565.0,1e-08]
[1759745740216,9.63542737,4565.1,4565.0,1e-08]
[1759745742175,9.19672737,4565.1,4565.0,1e-08]
[1759745742419,9.19675366,4565.1,4565.0,1e-08]
[1759745742979,9.63545366,4565.1,4565.0,1e-08]
[1759745744805,9.43083251,4565.1,4565.0,1e-08]
[1759745745006,9.6354866,4565.1,4565.0,1e-08]
[1759745745619,12.77557995,4565.1,4565.0,1e-08]
[1759745745792,13.21368644,4565.1,4565.0,1e-08]
[1759745746107,2.19077246,4564.6,4564.5,0.001]
[1759745746292,4.97702655,4564.6,4564.5,0.001]
[1759745746493,5.41572655,4564.6,4564.5,0.001]
[1759745746900,5.88902655,4564.6,4564.5,0.001]
[1759745747093,5.41572655,4564.6,4564.5,0.001]
[1759745751120,2.94372655,4564.6,4564.5,0.001]
[1759745751444,9.63672655,4564.6,4564.5,0.001]
[1759745752017,9.63656934,4564.6,4564.5,0.001]
[1759745754818,16.71656934,4564.6,4564.5,0.001]
[1759745755126,2.19101246,4564.1,4564.0,1e-08]
[1759745755350,9.19810934,4564.1,4564.0,1e-08]
[1759745755523,9.63680934,4564.1,4564.0,1e-08]
[1759745756326,10.11010934,4564.1,4564.0,1e-08]
[1759745756722,7.08880934,4564.1,4564.0,1e-08]
[1759745757049,9.19810934,4564.1,4564.0,1e-08]
[1759745757636,6.72510934,4564.1,4564.0,1e-08]
[1759745758242,9.19810934,4564.1,4564.0,0.47330001]
[1759745758977,9.19810934,4564.1,4564.0,1e-08]
[1759745761289,9.63680934,4564.1,4564.0,1e-08]
[1759745762078,9.19810934,4564.1,4564.0,1e-08]
[1759745763176,6.72510934,4564.1,4564.0,1e-08]
[1759745763381,9.19810934,4564.1,4564.0,0.45300001]
[1759745763585,9.19730934,4564.1,4564.0,0.45300001]
[1759745764077,6.72510934,4564.1,4564.0,0.45300001]
[1759745764456,9.19810934,4564.1,4564.0,0.45300001]
[1759745765388,6.72510934,4564.1,4564.0,0.45300001]
[1759745765553,9.19810934,4564.1,4564.0,0.45300001]
[1759745766253,4.97810934,4564.1,4564.0,0.45300001]
[1759745766872,2.78709688,4564.1,4564.0,0.45300001]
[1759745767419,0.31409688,4564.1,4564.0,0.45300001]
[1759745767576,0.1096,4564.1,4564.0,0.45400001]
[1759745767905,2.5826,4564.1,4564.0,0.71851765]
[1759745768104,0.1096,4564.1,4564.0,0.45400001]
[1759745768311,4.77361246,4564.1,4564.0,0.45400001]
[1759745768474,4.97804085,4564.1,4564.0,0.45400001]
[1759745769602,2.78702839,4564.1,4564.0,0.45400001]
[1759745769774,4.97804085,4564.1,4564.0,0.45400001]
[1759745769978,2.78702839,4564.1,4564.0,0.45400001]
[1759745770220,4.97804085,4564.1,4564.0,0.45400001]
[1759745770509,4.97804085,4564.1,4564.0,0.00100001]
[1759745771607,2.78702839,4564.1,4564.0,0.00100001]
[1759745771806,4.97804085,4564.1,4564.0,0.00100001]
[1759745772876,4.77361246,4564.1,4564.0,0.00100001]
[1759745773189,4.97816857,4564.1,4564.0,0.00100001]
[1759745774930,5.44756857,4564.1,4564.0,0.00100001]
[1759745776432,5.53528757,4564.1,4564.0,0.00100001]
[1759745778738,7.93528757,4564.1,4564.0,0.00100001]
[1759745779112,7.93528757,4564.1,4561.6,0.11438286]
[1759745779113,2.4,4564.0,4561.6,0.11438286]
[1759745779313,2.19205872,4562.0,4561.9,0.453]
[1759745779500,2.473,4562.0,4561.9,0.453]
[1759745780207,4.66502104,4562.0,4561.9,0.453]
[1759745782145,4.66502104,4562.0,4561.6,0.11438286]
[1759745782443,2.19206909,4561.9,4561.8,1.50981818]
[1759745782650,2.19206909,4561.9,4561.8,1.05681818]
[1759745783219,2.19206909,4561.9,4561.8,1.50981818]
[1759745783420,0.20411529,4561.9,4561.8,1.05681818]
[1759745783649,4.66506909,4561.9,4561.8,1.50981818]
[1759745784514,4.66506909,4561.9,4561.8,1.05681818]
[1759745785320,4.66506909,4561.9,4561.8,1.05781818]
[1759745788051,4.66426909,4561.9,4561.8,1.05781818]
[1759745789074,4.77386909,4561.9,4561.8,1.05781818]
[1759745790068,5.24326909,4561.9,4561.8,1.05781818]
[1759745790563,5.44697862,4561.9,4561.8,1.05781818]
[1759745790933,4.97757862,4561.9,4561.8,1.05781818]
[1759745791153,5.44697862,4561.9,4561.8,1.05781818]
[1759745792231,5.24326909,4561.9,4561.8,1.05781818]
[1759745792864,0.65812349,4562.4,4561.8,1.05781818]
[1759745793064,0.2036139,4562.3,4561.8,1.05781818]
[1759745793364,2.19206909,4561.9,4561.8,1.51301818]
[1759745793540,0.002,4563.0,4561.8,1.51301818]
[1759745793743,2.19205816,4562.0,4561.9,0.4552]
[1759745793956,4.66505816,4562.0,4561.9,0.4552]
[1759745794157,2.19206909,4561.9,4561.8,1.05781818]
[1759745795456,4.66506909,4561.9,4561.8,1.05781818]
[1759745795765,4.66506909,4561.9,4561.8,1.48711818]
[1759745799064,4.66506909,4561.9,4561.8,1.05781818]
[1759745802985,4.77466909,4561.9,4561.8,1.05781818]
[1759745803190,4.97896718,4561.9,4561.8,1.05781818]
[1759745804059,4.77466909,4561.9,4561.8,1.05781818]
[1759745804272,4.97896148,4561.9,4561.8,1.05781818]
[1759745807794,5.41016148,4561.9,4561.8,1.05781818]
[1759745807994,5.20586909,4561.9,4561.8,1.05781818]
[1759745808480,5.41056533,4561.9,4561.8,1.05781818]
[1759745808858,5.20586909,4561.9,4561.8,1.05781818]
[1759745809488,4.77466909,4561.9,4561.8,1.05781818]
[1759745809688,2.30166909,4561.9,4561.8,1.48711818]
[1759745809889,4.77466909,4561.9,4561.8,1.48711818]
[1759745810076,4.77466909,4561.9,4561.8,1.05781818]
[1759745810591,4.77466909,4561.9,4561.8,1.48711818]
[1759745810792,4.97937313,4561.9,4561.8,1.48711818]
[1759745811091,4.86977313,4561.9,4561.8,1.05781818]
[1759745812716,4.86897313,4561.9,4561.8,1.05781818]
[1759745812887,5.30017313,4561.9,4561.8,1.05781818]
[1759745813095,4.86897313,4561.9,4561.8,1.05781818]
[1759745814909,4.86897313,4561.9,4561.8,1.48711818]